[Event "Titled Tuesday Blitz October 25 Late 2022"]
[White "Rodriguez Santiago, Jaime"]
[Black "Mazurkiewicz, Michal"]
[WhiteFideId "3100898"]
[BlackFideId "1124943"]
[WhiteElo "2025"]
[BlackElo "2063"]
[Result "0-1"]
[Round "07"]
[TimeControl "180+1"]
[Date "2022.10.26"]
[WhiteClock "0:00:17"]
[BlackClock "0:00:32"]

1. Nf3 {[%clk 0:03:00]}  Nf6 {[%clk 0:02:50]} 2. g3 {[%clk 0:02:59]}  g6 {[%clk 0:02:49]} 3. Bg2 {[%clk 0:02:59]}  Bg7 {[%clk 0:02:50]} 4. d4 {[%clk 0:02:59]}  O-O {[%clk 0:02:51]} 5. O-O {[%clk 0:02:58]}  d6 {[%clk 0:02:51]} 6. b3 {[%clk 0:02:58]}  Nbd7 {[%clk 0:02:49]} 7. Bb2 {[%clk 0:02:58]}  Re8 {[%clk 0:02:50]} 8. c4 {[%clk 0:02:53]}  c6 {[%clk 0:02:49]} 9. Nc3 {[%clk 0:02:51]}  e5 {[%clk 0:02:50]} 10. dxe5 {[%clk 0:02:42]}  dxe5 {[%clk 0:02:50]} 11. e4 {[%clk 0:02:41]}  Qc7 {[%clk 0:02:48]} 12. Qe2 {[%clk 0:02:34]}  Nc5 {[%clk 0:02:48]} 13. Rad1 {[%clk 0:02:30]}  a5 {[%clk 0:02:43]} 14. Ba1 {[%clk 0:02:23]}  h6 {[%clk 0:02:38]} 15. h3 {[%clk 0:02:21]}  Nh5 {[%clk 0:02:30]} 16. Ne1 {[%clk 0:01:59]}  Qb6 {[%clk 0:02:28]} 17. Nc2 {[%clk 0:01:55]}  Nxb3 {[%clk 0:01:50]} 18. axb3 {[%clk 0:01:44]}  Nxg3 {[%clk 0:01:49]} 19. Qd2 {[%clk 0:01:27]}  Nxf1 {[%clk 0:01:46]} 20. Bxf1 {[%clk 0:01:21]}  Be6 {[%clk 0:01:42]} 21. Rb1 {[%clk 0:01:10]}  f5 {[%clk 0:01:33]} 22. Ne3 {[%clk 0:01:05]}  f4 {[%clk 0:01:29]} 23. Ng4 {[%clk 0:01:01]}  h5 {[%clk 0:01:25]} 24. Nh2 {[%clk 0:01:01]}  g5 {[%clk 0:01:17]} 25. Nf3 {[%clk 0:00:53]}  g4 {[%clk 0:01:16]} 26. hxg4 {[%clk 0:00:52]}  hxg4 {[%clk 0:01:17]} 27. Ng5 {[%clk 0:00:52]}  Rad8 {[%clk 0:01:15]} 28. Qe1 {[%clk 0:00:42]}  Bc8 {[%clk 0:01:13]} 29. c5 {[%clk 0:00:36]}  Qxc5 {[%clk 0:00:55]} 30. Bc4+ {[%clk 0:00:36]}  Kf8 {[%clk 0:00:54]} 31. Na4 {[%clk 0:00:33]}  Qd6 {[%clk 0:00:48]} 32. Bc3 {[%clk 0:00:26]}  Qg6 {[%clk 0:00:38]} 33. Nf7 {[%clk 0:00:25]}  Rd7 {[%clk 0:00:36]} 34. Nxe5 {[%clk 0:00:20]}  Bxe5 {[%clk 0:00:35]} 35. Bxe5 {[%clk 0:00:20]}  Rxe5 {[%clk 0:00:36]} 36. Nb6 {[%clk 0:00:18]}  Rh7 {[%clk 0:00:34]} 37. Nxc8 {[%clk 0:00:17]}  Qh5 {[%clk 0:00:32]} 0-1


[Site "https://www.chess.com"]

[Event "Titled Tuesday Blitz October 25 Late 2022"]
[White "Sargsyan, Anna M."]
[Black "Danielyan, Vahe"]
[WhiteFideId "13308130"]
[BlackFideId "13304828"]
[WhiteElo "2284"]
[BlackElo "2421"]
[Result "0-1"]
[Round "07"]
[TimeControl "180+1"]
[Date "2022.10.26"]
[WhiteClock "0:00:04"]
[BlackClock "0:01:06"]

1. d4 {[%clk 0:02:55]}  Nf6 {[%clk 0:02:59]} 2. c4 {[%clk 0:02:55]}  g6 {[%clk 0:02:59]} 3. g3 {[%clk 0:02:56]}  Bg7 {[%clk 0:02:59]} 4. Bg2 {[%clk 0:02:56]}  O-O {[%clk 0:03:00]} 5. Nc3 {[%clk 0:02:57]}  d6 {[%clk 0:02:59]} 6. Nf3 {[%clk 0:02:57]}  Nbd7 {[%clk 0:03:00]} 7. O-O {[%clk 0:02:58]}  e5 {[%clk 0:03:00]} 8. e4 {[%clk 0:02:58]}  b6 {[%clk 0:03:00]} 9. Re1 {[%clk 0:02:55]}  Bb7 {[%clk 0:03:00]} 10. h3 {[%clk 0:02:54]}  Re8 {[%clk 0:03:00]} 11. d5 {[%clk 0:02:52]}  a5 {[%clk 0:03:00]} 12. Qc2 {[%clk 0:02:47]}  h6 {[%clk 0:02:59]} 13. Be3 {[%clk 0:02:47]}  Nc5 {[%clk 0:02:59]} 14. b3 {[%clk 0:02:41]}  c6 {[%clk 0:02:59]} 15. dxc6 {[%clk 0:02:35]}  Bxc6 {[%clk 0:03:00]} 16. Nh2 {[%clk 0:02:34]}  Qb8 {[%clk 0:02:56]} 17. Rad1 {[%clk 0:02:33]}  Qb7 {[%clk 0:02:52]} 18. f3 {[%clk 0:02:27]}  Bf8 {[%clk 0:02:48]} 19. a4 {[%clk 0:02:10]}  Ne6 {[%clk 0:02:47]} 20. Qf2 {[%clk 0:01:58]}  Rab8 {[%clk 0:02:46]} 21. Ng4 {[%clk 0:01:40]}  Nxg4 {[%clk 0:02:45]} 22. fxg4 {[%clk 0:01:39]}  Ng5 {[%clk 0:02:42]} 23. Rf1 {[%clk 0:01:21]}  Bg7 {[%clk 0:02:30]} 24. Rxd6 {[%clk 0:01:17]}  Bxe4 {[%clk 0:02:02]} 25. Nxe4 {[%clk 0:00:50]}  Nxe4 {[%clk 0:02:01]} 26. Qc2 {[%clk 0:00:29]}  Qc7 {[%clk 0:01:45]} 27. Rxg6 {[%clk 0:00:24]}  fxg6 {[%clk 0:01:38]} 28. Bxe4 {[%clk 0:00:25]}  g5 {[%clk 0:01:38]} 29. Bd5+ {[%clk 0:00:25]}  Kh8 {[%clk 0:01:37]} 30. Qg6 {[%clk 0:00:22]}  Rf8 {[%clk 0:01:25]} 31. Be4 {[%clk 0:00:18]}  Rxf1+ {[%clk 0:01:25]} 32. Kxf1 {[%clk 0:00:19]}  Kg8 {[%clk 0:01:23]} 33. Kg2 {[%clk 0:00:16]}  Rd8 {[%clk 0:01:20]} 34. h4 {[%clk 0:00:14]}  Qf7 {[%clk 0:01:15]} 35. Qh7+ {[%clk 0:00:09]}  Kf8 {[%clk 0:01:14]} 36. hxg5 {[%clk 0:00:09]}  Rd1 {[%clk 0:01:15]} 37. Bf5 {[%clk 0:00:07]}  Qb7+ {[%clk 0:01:15]} 38. Be4 {[%clk 0:00:06]}  Qf7 {[%clk 0:01:09]} 39. Bf3 {[%clk 0:00:04]}  Rf1 {[%clk 0:01:06]} 0-1


[Site "https://www.chess.com"]

[Event "Titled Tuesday Blitz October 25 Late 2022"]
[White "Schuster, Karsten"]
[Black "Baches Garcia, Guillermo"]
[WhiteFideId "4611071"]
[BlackFideId "2209764"]
[WhiteElo "2294"]
[BlackElo "2439"]
[Result "0-1"]
[Round "07"]
[TimeControl "180+1"]
[Date "2022.10.26"]
[WhiteClock "0:00:16"]
[BlackClock "0:00:17"]

1. d4 {[%clk 0:03:00]}  Nf6 {[%clk 0:03:00]} 2. c4 {[%clk 0:03:01]}  e6 {[%clk 0:03:00]} 3. Nc3 {[%clk 0:03:01]}  d5 {[%clk 0:03:01]} 4. cxd5 {[%clk 0:03:01]}  Nxd5 {[%clk 0:03:02]} 5. Nf3 {[%clk 0:02:59]}  c5 {[%clk 0:03:01]} 6. e3 {[%clk 0:02:56]}  cxd4 {[%clk 0:03:00]} 7. Nxd5 {[%clk 0:02:50]}  Qxd5 {[%clk 0:02:57]} 8. Qxd4 {[%clk 0:02:50]}  Qxd4 {[%clk 0:02:55]} 9. Nxd4 {[%clk 0:02:50]}  Bb4+ {[%clk 0:02:54]} 10. Bd2 {[%clk 0:02:49]}  Bxd2+ {[%clk 0:02:53]} 11. Kxd2 {[%clk 0:02:50]}  Bd7 {[%clk 0:02:51]} 12. Bd3 {[%clk 0:02:48]}  Nc6 {[%clk 0:02:49]} 13. Nb5 {[%clk 0:02:38]}  Ke7 {[%clk 0:02:47]} 14. a3 {[%clk 0:02:22]}  Rhd8 {[%clk 0:02:41]} 15. Nc3 {[%clk 0:01:53]}  Ne5 {[%clk 0:02:39]} 16. Be4 {[%clk 0:01:44]}  Bc6+ {[%clk 0:02:17]} 17. Ke2 {[%clk 0:01:43]}  Nc4 {[%clk 0:01:55]} 18. Bxc6 {[%clk 0:01:42]}  bxc6 {[%clk 0:01:50]} 19. b3 {[%clk 0:01:41]}  Rd2+ {[%clk 0:01:43]} 20. Ke1 {[%clk 0:01:41]}  Rc2 {[%clk 0:01:38]} 21. Ne2 {[%clk 0:01:32]}  Nb2 {[%clk 0:01:26]} 22. Kf1 {[%clk 0:01:22]}  e5 {[%clk 0:01:10]} 23. Rc1 {[%clk 0:01:20]}  Rd2 {[%clk 0:01:01]} 24. g3 {[%clk 0:01:08]}  Rad8 {[%clk 0:00:31]} 25. Rxc6 {[%clk 0:01:05]}  Nd3 {[%clk 0:00:28]} 26. Rc7+ {[%clk 0:00:45]}  Ke6 {[%clk 0:00:24]} 27. Rxa7 {[%clk 0:00:35]}  Rc8 {[%clk 0:00:24]} 28. Ra6+ {[%clk 0:00:30]}  Kf5 {[%clk 0:00:20]} 29. g4+ {[%clk 0:00:28]}  Ke4 {[%clk 0:00:17]} 30. Ng3+ {[%clk 0:00:27]}  Kf3 {[%clk 0:00:16]} 31. Kg1 {[%clk 0:00:18]}  Rc1+ {[%clk 0:00:16]} 32. Nf1 {[%clk 0:00:17]}  Rxf1+ {[%clk 0:00:16]} 33. Kxf1 {[%clk 0:00:16]}  Rd1# {[%clk 0:00:17]} 0-1


[Site "https://www.chess.com"]

[Event "Titled Tuesday Blitz October 25 Late 2022"]
[White "Shapiro, Daniel"]
[Black "Castellanos Gomez, Alejandro"]
[WhiteFideId "2001780"]
[BlackFideId "22284141"]
[WhiteElo "2254"]
[BlackElo "2168"]
[Result "0-1"]
[Round "07"]
[TimeControl "180+1"]
[Date "2022.10.26"]
[WhiteClock "0:00:01"]
[BlackClock "0:00:14"]

1. d4 {[%clk 0:03:00]}  d5 {[%clk 0:02:58]} 2. c4 {[%clk 0:03:00]}  e6 {[%clk 0:02:59]} 3. Nf3 {[%clk 0:03:00]}  Nf6 {[%clk 0:02:59]} 4. g3 {[%clk 0:03:01]}  Be7 {[%clk 0:02:59]} 5. Bg2 {[%clk 0:03:01]}  O-O {[%clk 0:03:00]} 6. O-O {[%clk 0:03:01]}  dxc4 {[%clk 0:02:59]} 7. Ne5 {[%clk 0:03:01]}  Nbd7 {[%clk 0:02:52]} 8. Nxc4 {[%clk 0:03:00]}  Nb6 {[%clk 0:02:52]} 9. Na5 {[%clk 0:02:45]}  c6 {[%clk 0:02:51]} 10. Nc3 {[%clk 0:02:38]}  Nbd5 {[%clk 0:02:50]} 11. Nb3 {[%clk 0:02:10]}  b6 {[%clk 0:02:49]} 12. Re1 {[%clk 0:02:03]}  Bb7 {[%clk 0:02:48]} 13. Bd2 {[%clk 0:01:57]}  Qd7 {[%clk 0:02:45]} 14. a3 {[%clk 0:01:47]}  Rfd8 {[%clk 0:02:43]} 15. e4 {[%clk 0:01:43]}  Nc7 {[%clk 0:02:43]} 16. Be3 {[%clk 0:01:39]}  Qe8 {[%clk 0:02:42]} 17. Qc2 {[%clk 0:01:34]}  Rac8 {[%clk 0:02:41]} 18. Rad1 {[%clk 0:01:32]}  Nb5 {[%clk 0:02:41]} 19. Nxb5 {[%clk 0:01:13]}  cxb5 {[%clk 0:02:41]} 20. Qb1 {[%clk 0:01:14]}  Ng4 {[%clk 0:02:29]} 21. Bf4 {[%clk 0:01:07]}  b4 {[%clk 0:02:14]} 22. e5 {[%clk 0:00:49]}  Bxg2 {[%clk 0:02:12]} 23. Kxg2 {[%clk 0:00:50]}  bxa3 {[%clk 0:02:09]} 24. h3 {[%clk 0:00:46]}  Qb5 {[%clk 0:01:33]} 25. bxa3 {[%clk 0:00:40]}  Rc3 {[%clk 0:01:25]} 26. Na1 {[%clk 0:00:31]}  Qd5+ {[%clk 0:01:22]} 27. Kg1 {[%clk 0:00:24]}  Nxf2 {[%clk 0:01:14]} 28. Kxf2 {[%clk 0:00:20]}  g5 {[%clk 0:01:13]} 29. Qe4 {[%clk 0:00:15]}  gxf4 {[%clk 0:01:12]} 30. gxf4 {[%clk 0:00:14]}  Bh4+ {[%clk 0:01:10]} 31. Kf1 {[%clk 0:00:12]}  Bxe1 {[%clk 0:00:59]} 32. Qxd5 {[%clk 0:00:09]}  Rxd5 {[%clk 0:00:58]} 33. Kxe1 {[%clk 0:00:10]}  Re3+ {[%clk 0:00:58]} 34. Kf2 {[%clk 0:00:09]}  Re4 {[%clk 0:00:58]} 35. Nc2 {[%clk 0:00:08]}  Rxf4+ {[%clk 0:00:58]} 36. Ke3 {[%clk 0:00:08]}  Rh4 {[%clk 0:00:56]} 37. Rg1+ {[%clk 0:00:08]}  Kf8 {[%clk 0:00:56]} 38. Rg3 {[%clk 0:00:09]}  Rb5 {[%clk 0:00:55]} 39. Kd2 {[%clk 0:00:07]}  Rb2 {[%clk 0:00:49]} 40. Kc3 {[%clk 0:00:07]}  Rb1 {[%clk 0:00:49]} 41. Nb4 {[%clk 0:00:07]}  Rc1+ {[%clk 0:00:48]} 42. Kd2 {[%clk 0:00:06]}  Rc4 {[%clk 0:00:47]} 43. Nc2 {[%clk 0:00:04]}  Rf4 {[%clk 0:00:47]} 44. Kd3 {[%clk 0:00:03]}  Ra4 {[%clk 0:00:43]} 45. Kc3 {[%clk 0:00:03]}  Rf1 {[%clk 0:00:38]} 46. Kb3 {[%clk 0:00:03]}  Ra5 {[%clk 0:00:30]} 47. Nb4 {[%clk 0:00:03]}  Rd1 {[%clk 0:00:24]} 48. Rg4 {[%clk 0:00:03]}  Re1 {[%clk 0:00:17]} 49. Rg3 {[%clk 0:00:02]}  Re4 {[%clk 0:00:18]} 50. Rd3 {[%clk 0:00:02]}  Re1 {[%clk 0:00:14]} 51. Nc6 {[%clk 0:00:01]}  Rd5 {[%clk 0:00:13]} 52. Nb4 {[%clk 0:00:01]}  Rd8 {[%clk 0:00:13]} 53. Nc6 {[%clk 0:00:01]}  Rd7 {[%clk 0:00:13]} 54. Nb4 {[%clk 0:00:01]}  a5 {[%clk 0:00:14]} 0-1


[Site "https://www.chess.com"]

[Event "Titled Tuesday Blitz October 25 Late 2022"]
[White "Sibilio, Mario"]
[Black "Pakleza, Zbigniew"]
[WhiteFideId "800422"]
[BlackFideId "1119290"]
[WhiteElo "2296"]
[BlackElo "2411"]
[Result "0-1"]
[Round "07"]
[TimeControl "180+1"]
[Date "2022.10.26"]
[WhiteClock "0:00:02"]
[BlackClock "0:00:01"]

1. e4 {[%clk 0:02:59]}  d6 {[%clk 0:03:00]} 2. d4 {[%clk 0:02:54]}  Nf6 {[%clk 0:03:00]} 3. Nc3 {[%clk 0:02:50]}  c6 {[%clk 0:02:59]} 4. f4 {[%clk 0:02:48]}  Qb6 {[%clk 0:02:59]} 5. e5 {[%clk 0:02:41]}  Nd5 {[%clk 0:02:58]} 6. Nf3 {[%clk 0:02:29]}  Bg4 {[%clk 0:02:55]} 7. Be2 {[%clk 0:02:27]}  e6 {[%clk 0:02:55]} 8. Ne4 {[%clk 0:02:21]}  dxe5 {[%clk 0:02:53]} 9. fxe5 {[%clk 0:02:20]}  c5 {[%clk 0:02:18]} 10. c4 {[%clk 0:02:08]}  Nb4 {[%clk 0:02:17]} 11. a3 {[%clk 0:01:50]}  Bxf3 {[%clk 0:01:59]} 12. Bxf3 {[%clk 0:01:44]}  N4c6 {[%clk 0:01:58]} 13. dxc5 {[%clk 0:01:27]}  Bxc5 {[%clk 0:01:59]} 14. Nd6+ {[%clk 0:01:23]}  Bxd6 {[%clk 0:01:48]} 15. Qxd6 {[%clk 0:01:22]}  Nd7 {[%clk 0:01:36]} 16. Bf4 {[%clk 0:01:04]}  O-O-O {[%clk 0:00:44]} 17. Bxc6 {[%clk 0:00:59]}  Qxc6 {[%clk 0:00:38]} 18. Qxc6+ {[%clk 0:00:55]}  bxc6 {[%clk 0:00:39]} 19. O-O-O {[%clk 0:00:54]}  Nc5 {[%clk 0:00:36]} 20. Kc2 {[%clk 0:00:54]}  a5 {[%clk 0:00:25]} 21. b4 {[%clk 0:00:49]}  axb4 {[%clk 0:00:16]} 22. axb4 {[%clk 0:00:48]}  Na6 {[%clk 0:00:12]} 23. Kc3 {[%clk 0:00:48]}  Rxd1 {[%clk 0:00:09]} 24. Rxd1 {[%clk 0:00:46]}  Rd8 {[%clk 0:00:10]} 25. Rxd8+ {[%clk 0:00:40]}  Kxd8 {[%clk 0:00:11]} 26. Be3 {[%clk 0:00:39]}  Kc7 {[%clk 0:00:04]} 27. g4 {[%clk 0:00:21]}  Nb8 {[%clk 0:00:03]} 28. Bc5 {[%clk 0:00:19]}  Nd7 {[%clk 0:00:04]} 29. Bd6+ {[%clk 0:00:17]}  Kb6 {[%clk 0:00:04]} 30. Kd4 {[%clk 0:00:16]}  f6 {[%clk 0:00:02]} 31. h4 {[%clk 0:00:14]}  Kb7 {[%clk 0:00:01]} 32. c5 {[%clk 0:00:10]}  Ka6 {[%clk 0:00:01]} 33. Kc4 {[%clk 0:00:08]}  fxe5 {[%clk 0:00:01]} 34. g5 {[%clk 0:00:06]}  e4 {[%clk 0:00:01]} 35. Bf4 {[%clk 0:00:05]}  g6 {[%clk 0:00:01]} 36. Bd2 {[%clk 0:00:02]}  Ne5+ {[%clk 0:00:01]} 0-1


[Site "https://www.chess.com"]

[Event "Titled Tuesday Blitz October 25 Late 2022"]
[White "Souleidis, Georgios"]
[Black "Arabidze, Meri"]
[WhiteFideId "4206827"]
[BlackFideId "13604040"]
[WhiteElo "2401"]
[BlackElo "2403"]
[Result "0-1"]
[Round "07"]
[TimeControl "180+1"]
[Date "2022.10.26"]
[WhiteClock "0:00:02"]
[BlackClock "0:00:08"]

1. e4 {[%clk 0:03:00]}  c5 {[%clk 0:02:57]} 2. Be2 {[%clk 0:02:59]}  e6 {[%clk 0:02:58]} 3. d3 {[%clk 0:02:59]}  Nc6 {[%clk 0:02:58]} 4. f4 {[%clk 0:02:59]}  Nf6 {[%clk 0:02:59]} 5. Nf3 {[%clk 0:03:00]}  d5 {[%clk 0:02:59]} 6. e5 {[%clk 0:03:00]}  Nd7 {[%clk 0:02:57]} 7. O-O {[%clk 0:03:01]}  g6 {[%clk 0:02:54]} 8. c4 {[%clk 0:03:00]}  Nb6 {[%clk 0:02:53]} 9. a4 {[%clk 0:02:59]}  Nb4 {[%clk 0:02:43]} 10. a5 {[%clk 0:02:54]}  Nd7 {[%clk 0:02:43]} 11. Nc3 {[%clk 0:02:52]}  Nb8 {[%clk 0:02:41]} 12. cxd5 {[%clk 0:01:47]}  exd5 {[%clk 0:02:42]} 13. d4 {[%clk 0:01:47]}  N8c6 {[%clk 0:02:39]} 14. Be3 {[%clk 0:01:41]}  c4 {[%clk 0:02:34]} 15. b3 {[%clk 0:01:29]}  Bf5 {[%clk 0:02:27]} 16. bxc4 {[%clk 0:01:01]}  Nc2 {[%clk 0:02:27]} 17. Bf2 {[%clk 0:01:01]}  Nxa1 {[%clk 0:02:28]} 18. Qxa1 {[%clk 0:01:02]}  Qxa5 {[%clk 0:02:24]} 19. Nxd5 {[%clk 0:00:41]}  Qxa1 {[%clk 0:02:14]} 20. Rxa1 {[%clk 0:00:42]}  O-O-O {[%clk 0:02:13]} 21. Nf6 {[%clk 0:00:32]}  b6 {[%clk 0:01:40]} 22. d5 {[%clk 0:00:28]}  Na5 {[%clk 0:01:40]} 23. d6 {[%clk 0:00:27]}  Bxd6 {[%clk 0:01:22]} 24. exd6 {[%clk 0:00:26]}  Rxd6 {[%clk 0:01:22]} 25. Nd5 {[%clk 0:00:25]}  Be4 {[%clk 0:01:19]} 26. Nc3 {[%clk 0:00:16]}  Bd3 {[%clk 0:00:43]} 27. Nb5 {[%clk 0:00:10]}  Rdd8 {[%clk 0:00:42]} 28. Bxd3 {[%clk 0:00:08]}  Rxd3 {[%clk 0:00:43]} 29. Ne5 {[%clk 0:00:08]}  Rd2 {[%clk 0:00:24]} 30. c5 {[%clk 0:00:09]}  f6 {[%clk 0:00:19]} 31. Nf7 {[%clk 0:00:04]}  Rf8 {[%clk 0:00:20]} 32. Nfd6+ {[%clk 0:00:05]}  Kd7 {[%clk 0:00:20]} 33. cxb6 {[%clk 0:00:05]}  axb6 {[%clk 0:00:19]} 34. Bxb6 {[%clk 0:00:06]}  Nb3 {[%clk 0:00:18]} 35. Rb1 {[%clk 0:00:06]}  Ra8 {[%clk 0:00:13]} 36. Be3 {[%clk 0:00:04]}  Rd3 {[%clk 0:00:11]} 37. Kf2 {[%clk 0:00:03]}  Ra2+ {[%clk 0:00:11]} 38. Kf3 {[%clk 0:00:03]}  Nd2+ {[%clk 0:00:11]} 39. Ke2 {[%clk 0:00:03]}  Rxe3+ {[%clk 0:00:11]} 40. Kxe3 {[%clk 0:00:03]}  Nxb1 {[%clk 0:00:11]} 41. Ne4 {[%clk 0:00:02]}  Rxg2 {[%clk 0:00:10]} 42. Nxf6+ {[%clk 0:00:02]}  Ke6 {[%clk 0:00:09]} 43. Nxh7 {[%clk 0:00:02]}  Rxh2 {[%clk 0:00:10]} 44. Ng5+ {[%clk 0:00:03]}  Kf6 {[%clk 0:00:09]} 45. Nd6 {[%clk 0:00:02]}  Nc3 {[%clk 0:00:08]} 0-1


[Site "https://www.chess.com"]

[Event "Titled Tuesday Blitz October 25 Late 2022"]
[White "Tan, Ralph"]
[Black "Harish, Neeraj"]
[WhiteFideId "30966590"]
[BlackFideId "30958130"]
[WhiteElo "2059"]
[BlackElo "1815"]
[Result "1-0"]
[Round "07"]
[TimeControl "180+1"]
[Date "2022.10.26"]
[WhiteClock "0:00:47"]
[BlackClock "0:01:01"]

1. Nf3 {[%clk 0:03:00]}  Nf6 {[%clk 0:02:56]} 2. g3 {[%clk 0:03:00]}  d5 {[%clk 0:02:55]} 3. Bg2 {[%clk 0:02:57]}  e6 {[%clk 0:02:55]} 4. O-O {[%clk 0:02:57]}  Be7 {[%clk 0:02:55]} 5. d4 {[%clk 0:02:57]}  O-O {[%clk 0:02:56]} 6. c4 {[%clk 0:02:58]}  dxc4 {[%clk 0:02:55]} 7. Ne5 {[%clk 0:02:58]}  Nc6 {[%clk 0:02:55]} 8. Bxc6 {[%clk 0:02:57]}  bxc6 {[%clk 0:02:56]} 9. Nxc6 {[%clk 0:02:57]}  Qe8 {[%clk 0:02:56]} 10. Nxe7+ {[%clk 0:02:56]}  Qxe7 {[%clk 0:02:57]} 11. Qa4 {[%clk 0:02:56]}  e5 {[%clk 0:02:51]} 12. dxe5 {[%clk 0:02:56]}  Qxe5 {[%clk 0:02:52]} 13. Nc3 {[%clk 0:02:57]}  Rd8 {[%clk 0:02:40]} 14. Qxc4 {[%clk 0:02:42]}  Be6 {[%clk 0:02:39]} 15. Qf4 {[%clk 0:02:33]}  Qxf4 {[%clk 0:02:34]} 16. Bxf4 {[%clk 0:02:34]}  c6 {[%clk 0:02:34]} 17. Bg5 {[%clk 0:02:07]}  Rab8 {[%clk 0:02:30]} 18. b3 {[%clk 0:01:59]}  Rd7 {[%clk 0:01:52]} 19. Bxf6 {[%clk 0:01:54]}  gxf6 {[%clk 0:01:51]} 20. Rfd1 {[%clk 0:01:53]}  Rbd8 {[%clk 0:01:51]} 21. f3 {[%clk 0:01:50]}  Kf8 {[%clk 0:01:48]} 22. Kf2 {[%clk 0:01:43]}  Ke7 {[%clk 0:01:48]} 23. Rxd7+ {[%clk 0:01:38]}  Rxd7 {[%clk 0:01:48]} 24. Ke3 {[%clk 0:01:39]}  f5 {[%clk 0:01:45]} 25. Rc1 {[%clk 0:01:38]}  Rd6 {[%clk 0:01:38]} 26. Na4 {[%clk 0:01:31]}  Kd7 {[%clk 0:01:30]} 27. Nc5+ {[%clk 0:01:30]}  Kc7 {[%clk 0:01:30]} 28. Nd3 {[%clk 0:01:29]}  f6 {[%clk 0:01:28]} 29. h4 {[%clk 0:01:07]}  Kb6 {[%clk 0:01:17]} 30. a4 {[%clk 0:00:59]}  a5 {[%clk 0:01:16]} 31. b4 {[%clk 0:00:58]}  Bd7 {[%clk 0:01:12]} 32. bxa5+ {[%clk 0:00:54]}  Kxa5 {[%clk 0:01:13]} 33. Nc5 {[%clk 0:00:55]}  Rd5 {[%clk 0:01:11]} 34. Nxd7 {[%clk 0:00:53]}  Rxd7 {[%clk 0:01:11]} 35. Rxc6 {[%clk 0:00:54]}  Kxa4 {[%clk 0:01:07]} 36. Rxf6 {[%clk 0:00:52]}  Re7+ {[%clk 0:01:07]} 37. Kf2 {[%clk 0:00:48]}  Re5 {[%clk 0:01:04]} 38. Rf7 {[%clk 0:00:48]}  h5 {[%clk 0:01:01]} 39. Rh7 {[%clk 0:00:47]}  f4 {[%clk 0:01:02]} 40. gxf4 {[%clk 0:00:47]}  Rf5 {[%clk 0:01:01]} 41. Kg3 {[%clk 0:00:47]}  Kb4 {[%clk 0:01:00]} 42. e4 {[%clk 0:00:47]}  Rb5 {[%clk 0:00:59]} 43. f5 {[%clk 0:00:47]}  Kc4 {[%clk 0:01:00]} 44. Rxh5 {[%clk 0:00:47]}  Kd4 {[%clk 0:01:01]} 45. Kf4 {[%clk 0:00:47]} 1-0


[Site "https://www.chess.com"]

[Event "Titled Tuesday Blitz October 25 Late 2022"]
[White "Varriale, Luca"]
[Black "Roberts, Paul"]
[WhiteFideId "882461"]
[BlackFideId "2400600"]
[WhiteElo "2245"]
[BlackElo "2112"]
[Result "1/2-1/2"]
[Round "07"]
[TimeControl "180+1"]
[Date "2022.10.26"]
[WhiteClock "0:00:13"]
[BlackClock "0:00:43"]

1. e4 {[%clk 0:03:00]}  c5 {[%clk 0:02:59]} 2. Nf3 {[%clk 0:03:01]}  e6 {[%clk 0:03:00]} 3. d4 {[%clk 0:03:01]}  cxd4 {[%clk 0:02:59]} 4. Nxd4 {[%clk 0:03:02]}  Nf6 {[%clk 0:02:59]} 5. Nc3 {[%clk 0:03:02]}  Nc6 {[%clk 0:02:59]} 6. Nb3 {[%clk 0:02:50]}  d5 {[%clk 0:02:52]} 7. exd5 {[%clk 0:02:36]}  exd5 {[%clk 0:02:52]} 8. Bb5 {[%clk 0:02:37]}  Bd6 {[%clk 0:02:45]} 9. Qe2+ {[%clk 0:02:36]}  Be6 {[%clk 0:02:43]} 10. Nd4 {[%clk 0:02:35]}  O-O {[%clk 0:02:34]} 11. Bxc6 {[%clk 0:02:34]}  bxc6 {[%clk 0:02:34]} 12. Nxe6 {[%clk 0:02:35]}  fxe6 {[%clk 0:02:33]} 13. Qxe6+ {[%clk 0:02:36]}  Kh8 {[%clk 0:02:33]} 14. O-O {[%clk 0:02:36]}  Qc7 {[%clk 0:02:29]} 15. g3 {[%clk 0:02:33]}  Rae8 {[%clk 0:02:29]} 16. Qh3 {[%clk 0:02:29]}  d4 {[%clk 0:02:25]} 17. Na4 {[%clk 0:02:18]}  Ne4 {[%clk 0:02:20]} 18. c3 {[%clk 0:02:08]}  d3 {[%clk 0:02:17]} 19. Be3 {[%clk 0:02:06]}  Qa5 {[%clk 0:01:56]} 20. b3 {[%clk 0:02:05]}  Nxc3 {[%clk 0:01:54]} 21. Nxc3 {[%clk 0:01:59]}  Qxc3 {[%clk 0:01:53]} 22. Rac1 {[%clk 0:02:00]}  Qb2 {[%clk 0:01:47]} 23. Rxc6 {[%clk 0:01:59]}  Be5 {[%clk 0:01:35]} 24. Rd1 {[%clk 0:01:48]}  Qxa2 {[%clk 0:01:31]} 25. Qf1 {[%clk 0:01:41]}  Qxb3 {[%clk 0:01:28]} 26. Qxd3 {[%clk 0:01:33]}  Qxd3 {[%clk 0:01:27]} 27. Rxd3 {[%clk 0:01:34]}  a5 {[%clk 0:01:26]} 28. Ra3 {[%clk 0:01:23]}  Ra8 {[%clk 0:01:21]} 29. Rc5 {[%clk 0:01:22]}  Bb2 {[%clk 0:01:21]} 30. Raxa5 {[%clk 0:01:17]}  Rxa5 {[%clk 0:01:19]} 31. Rxa5 {[%clk 0:01:18]}  h6 {[%clk 0:01:19]} 32. Rb5 {[%clk 0:01:16]}  Bf6 {[%clk 0:01:17]} 33. Kg2 {[%clk 0:01:16]}  Kh7 {[%clk 0:01:17]} 34. Rb4 {[%clk 0:01:16]}  Rf7 {[%clk 0:01:17]} 35. Bd4 {[%clk 0:01:16]}  Bxd4 {[%clk 0:01:16]} 36. Rxd4 {[%clk 0:01:17]}  Ra7 {[%clk 0:01:15]} 37. h3 {[%clk 0:01:17]}  Rb7 {[%clk 0:01:15]} 38. Rd3 {[%clk 0:01:17]}  Ra7 {[%clk 0:01:15]} 39. g4 {[%clk 0:01:17]}  Rb7 {[%clk 0:01:15]} 40. Kg3 {[%clk 0:01:18]}  Ra7 {[%clk 0:01:13]} 41. f3 {[%clk 0:01:18]}  Rb7 {[%clk 0:01:13]} 42. h4 {[%clk 0:01:19]}  Ra7 {[%clk 0:01:13]} 43. Rd4 {[%clk 0:01:15]}  Kg6 {[%clk 0:01:11]} 44. Rd6+ {[%clk 0:01:14]}  Kf7 {[%clk 0:01:11]} 45. g5 {[%clk 0:01:14]}  hxg5 {[%clk 0:01:10]} 46. hxg5 {[%clk 0:01:15]}  Rb7 {[%clk 0:01:10]} 47. Kg4 {[%clk 0:01:14]}  Rb4+ {[%clk 0:01:09]} 48. f4 {[%clk 0:01:14]}  Ra4 {[%clk 0:01:07]} 49. Rb6 {[%clk 0:01:12]}  Ra7 {[%clk 0:01:06]} 50. Rb5 {[%clk 0:01:08]}  Rc7 {[%clk 0:01:06]} 51. Kf5 {[%clk 0:01:08]}  Ra7 {[%clk 0:01:04]} 52. Kg4 {[%clk 0:01:07]}  Rc7 {[%clk 0:01:03]} 53. Kh5 {[%clk 0:00:53]}  Ra7 {[%clk 0:01:01]} 54. Rf5+ {[%clk 0:00:52]}  Kg8 {[%clk 0:00:58]} 55. g6 {[%clk 0:00:38]}  Ra1 {[%clk 0:00:54]} 56. Rb5 {[%clk 0:00:37]}  Rh1+ {[%clk 0:00:53]} 57. Kg5 {[%clk 0:00:37]}  Rg1+ {[%clk 0:00:53]} 58. Kf5 {[%clk 0:00:37]}  Kf8 {[%clk 0:00:51]} 59. Rb8+ {[%clk 0:00:36]}  Ke7 {[%clk 0:00:51]} 60. Rb7+ {[%clk 0:00:36]}  Kf8 {[%clk 0:00:51]} 61. Rf7+ {[%clk 0:00:30]}  Kg8 {[%clk 0:00:51]} 62. Re7 {[%clk 0:00:31]}  Kf8 {[%clk 0:00:51]} 63. Re5 {[%clk 0:00:27]}  Rg2 {[%clk 0:00:49]} 64. Re6 {[%clk 0:00:23]}  Rg1 {[%clk 0:00:48]} 65. Ra6 {[%clk 0:00:21]}  Rg2 {[%clk 0:00:47]} 66. Ke5 {[%clk 0:00:22]}  Rg1 {[%clk 0:00:44]} 67. f5 {[%clk 0:00:17]}  Re1+ {[%clk 0:00:44]} 68. Kd5 {[%clk 0:00:17]}  Rd1+ {[%clk 0:00:44]} 69. Ke4 {[%clk 0:00:18]}  Re1+ {[%clk 0:00:44]} 70. Kf4 {[%clk 0:00:19]}  Rf1+ {[%clk 0:00:44]} 71. Ke4 {[%clk 0:00:19]}  Re1+ {[%clk 0:00:44]} 72. Kd3 {[%clk 0:00:19]}  Rd1+ {[%clk 0:00:44]} 73. Ke3 {[%clk 0:00:17]}  Re1+ {[%clk 0:00:43]} 74. Kf4 {[%clk 0:00:13]}  Rf1+ {[%clk 0:00:43]} 75. Kg5 {[%clk 0:00:13]}  Rg1+ {[%clk 0:00:43]} 76. Kf4 {[%clk 0:00:13]}  Rf1+ {[%clk 0:00:43]} 1/2-1/2


[Site "https://www.chess.com"]